[Event "Austria Championship Blitz 2024"]
[Site "Innsbruck"]
[Date "2024.06.01"]
[Round "2.13"]
[White "Binder, Moriz"]
[Black "Myagmarsuren, Mandukhai"]
[Result "0-1"]
[ECO "D11"]
[WhiteElo "2210"]
[BlackElo "2092"]
[Annotator "RC"]
[PlyCount "98"]
[EventDate "2024.06.01"]
[EventType "swiss"]
[EventCountry "AUT"]
[SourceTitle "playchess.com"]
[Source "ChessBase"]
[SourceQuality "1"]
[TimeControl "180+2"]

1. d4 {[%emt 0:00:01]} d5 {[%emt 0:00:02]} 2. c4 {[%emt 0:00:01]} c6 {[%emt 0:00:01]} 3. Nf3 {[%emt 0:00:01]} Nf6 {[%emt 0:03:05]} 4. Nbd2 Bf5 {[%emt 0:00:00]} 5. Nh4 {[%emt 0:00:02]} Be4 {[%emt 0:00:00]} 6. Nxe4 {[%emt 0:00:17]} Nxe4 {[%emt 0:00:00]} 7. Qb3 {[%emt 0:00:24]} Qa5+ {[%emt 0:00:00]} 8. Kd1 {[%emt 0:00:07]} Nxf2+ {[%emt 0:00:10]} 9. Kc2 b5 {[%emt 0:00:00]} 10. Rg1 {[%emt 0:00:51]} e6 {[%emt 0:00:00]} 11. cxb5 {[%emt 0:00:13]} cxb5 {[%emt 0:00:00]} 12. e4 {[%emt 0:00:02]} Nxe4 {[%emt 0:00:00]} 13. Bxb5+ {[%emt 0:00:02]} Nd7 {[%emt 0:00:00]} 14. Rf1 {[%emt 0:00:48]} Rc8+ {[%emt 0:00:00]} 15. Kb1 {[%emt 0:00:01]} f5 {[%emt 0:00:00]} 16. a3 {[%emt 0:00:35]} Bd6 {[%emt 0:00:00]} 17. Nxf5 {[%emt 0:00:03]} exf5 {[%emt 0:00:00]} 18. Qxd5 {[%emt 0:00:00]} Qc7 {[%emt 0:00:12]} 19. Rxf5 {[%emt 0:00:03]} Qxc1+ {[%emt 0:00:06]} 20. Ka2 {[%emt 0:00:01]} Nc3+ {[%emt 0:00:01]} 21. Kb3 {[%emt 0:00:02]} Qe3 {[%emt 0:00:03]} 22. Bxd7+ {[%emt 0:00:05]} Kxd7 {[%emt 0:00:01]} 23. Qf7+ {[%emt 0:00:06]} Kc6 {[%emt 0:00:01]} 24. bxc3 {[%emt 0:00:01]} Rb8+ {[%emt 0:00:01]} 25. Ka4 {[%emt 0:00:01]} Qxc3 {[%emt 0:00:02]} 26. Qd5+ {[%emt 0:00:00]} Kb6 {[%emt 0:00:05]} 27. Rb1+ Ka6 {[%emt 0:00:01]} 28. Qxd6+ {[%emt 0:00:11]} Rb6 29. Rxb6+ {[%emt 0:00:00]} axb6 {[%emt 0:00:01]} 30. Qb4 {[%emt 0:00:00]} Qxb4+ 31. Kxb4 {[%emt 0:00:00]} Rd8 {[%emt 0:00:04]} 32. Kc4 {[%emt 0:00:00]} b5+ {[%emt 0:00:02]} 33. Kd3 {[%emt 0:00:00]} Ka5 {[%emt 0:00:01]} 34. Rf7 {[%emt 0:00:01]} Ra8 {[%emt 0:00:01]} 35. Rxg7 {[%emt 0:00:01]} Ka4 {[%emt 0:00:01]} 36. Rxh7 {[%emt 0:00:01]} Kxa3 {[%emt 0:00:01]} 37. Rb7 {[%emt 0:00:01]} b4 {[%emt 0:00:00]} 38. d5 {[%emt 0:00:00]} b3 {[%emt 0:00:02]} 39. Kd4 {[%emt 0:00:05]} Ra4+ {[%emt 0:00:01]} 40. Ke5 {[%emt 0:00:01]} Rb4 {[%emt 0:00:00]} 41. Ra7+ {[%emt 0:00:01]} Kb2 {[%emt 0:00:01]} 42. Rf7 {[%emt 0:00:01]} Kc1 {[%emt 0:00:04]} 43. d6 {[%emt 0:00:01]} b2 {[%emt 0:00:02]} 44. d7 {[%emt 0:00:01]} Rb8 {[%emt 0:00:02]} 45. Ke6 {[%emt 0:00:02]} Kc2 {[%emt 0:00:08]} 46. Ke7 {[%emt 0:00:02]} b1=Q {[%emt 0:00:02]} 47. d8=Q {[%emt 0:00:01]} Rxd8 {[%emt 0:00:01]} 48. Kxd8 {[%emt 0:00:01]} Qb8+ {[%emt 0:00:02]} 49. Ke7 {[%emt 0:00:02]} Qe5+ {[%emt 0:00:02]} 0-1

[Event "Austria Championship Blitz 2024"]
[Site "Innsbruck"]
[Date "2024.06.01"]
[Round "2.14"]
[White "Zanon, Magnus"]
[Black "Blaas, Hansjoerg"]
[Result "1-0"]
[ECO "D00"]
[WhiteElo "2092"]
[BlackElo "2222"]
[Annotator "RC"]
[PlyCount "59"]
[EventDate "2024.06.01"]
[EventType "swiss"]
[EventCountry "AUT"]
[SourceTitle "playchess.com"]
[Source "ChessBase"]
[SourceQuality "1"]
[TimeControl "180+2"]

1. d4 {[%emt 0:00:02]} d5 {[%emt 0:00:00]} 2. Bg5 {[%emt 0:00:02]} h6 {[%emt 0:00:01]} 3. Bd2 {[%emt 0:00:02]} Nf6 {[%emt 0:00:03]} 4. Nc3 {[%emt 0:00:02]} c5 {[%emt 0:00:02]} 5. e3 {[%emt 0:00:01]} Nc6 {[%emt 0:00:01]} 6. Nf3 {[%emt 0:00:03]} e6 {[%emt 0:00:03]} 7. Bb5 {[%emt 0:00:09]} Bd7 {[%emt 0:00:03]} 8. O-O {[%emt 0:00:03]} Bd6 {[%emt 0:00:00]} 9. dxc5 {[%emt 0:00:03]} Bxc5 {[%emt 0:00:01]} 10. Ne2 {[%emt 0:00:04]} O-O {[%emt 0:00:03]} 11. Ng3 {[%emt 0:00:02]} Re8 {[%emt 0:00:16]} 12. c4 {[%emt 0:00:04]} a6 {[%emt 0:00:02]} 13. cxd5 {[%emt 0:00:05]} Nxd5 {[%emt 0:00:10]} 14. Be2 {[%emt 0:00:13]} e5 {[%emt 0:00:23]} 15. Bc4 {[%emt 0:00:20]} Be6 {[%emt 0:00:03]} 16. e4 {[%emt 0:00:06]} Nf6 {[%emt 0:00:20]} 17. Bxe6 {[%emt 0:00:04]} Rxe6 {[%emt 0:00:10]} 18. Qc2 {[%emt 0:00:31]} Bd4 {[%emt 0:00:04]} 19. Rad1 {[%emt 0:00:10]} Rc8 {[%emt 0:00:05]} 20. Bc3 {[%emt 0:00:05]} Qe8 {[%emt 0:00:43]} 21. Qe2 {[%emt 0:00:08]} Bxc3 {[%emt 0:00:07]} 22. bxc3 {[%emt 0:00:02]} Na5 {[%emt 0:00:05]} 23. Rd3 {[%emt 0:00:02]} Rec6 {[%emt 0:00:07]} 24. Nf5 {[%emt 0:00:13]} Rxc3 {[%emt 0:00:06]} 25. Nd6 {[%emt 0:00:03]} Qd7 {[%emt 0:00:07]} 26. Nxe5 {[%emt 0:00:02]} Qe6 {[%emt 0:00:33]} 27. Nxc8 {[%emt 0:00:03]} Rxc8 {[%emt 0:00:03]} 28. Nf3 {[%emt 0:00:11]} Nxe4 {[%emt 0:00:13]} 29. Re3 {[%emt 0:00:03]} f5 {[%emt 0:00:01]} 30. Nd4 {[%emt 0:00:06]} 1-0

[Event "Austria Championship Blitz 2024"]
[Site "Innsbruck"]
[Date "2024.06.01"]
[Round "2.15"]
[White "Casagrande, Harald"]
[Black "Polterauer, Chiara"]
[Result "1-0"]
[ECO "A34"]
[WhiteElo "2290"]
[BlackElo "2136"]
[Annotator "RC"]
[PlyCount "113"]
[EventDate "2024.06.01"]
[EventType "swiss"]
[EventCountry "AUT"]
[SourceTitle "playchess.com"]
[Source "ChessBase"]
[SourceQuality "1"]
[TimeControl "180+2"]

1. c4 {[%emt 0:00:01]} c5 {[%emt 0:00:01]} 2. Nc3 {[%emt 0:00:02]} Nf6 {[%emt 0:00:00]} 3. g3 {[%emt 0:00:03]} d5 {[%emt 0:00:02]} 4. cxd5 {[%emt 0:00:01]} Nxd5 {[%emt 0:00:00]} 5. Bg2 {[%emt 0:00:01]} Nc7 {[%emt 0:00:02]} 6. Nf3 {[%emt 0:00:12]} Nc6 {[%emt 0:00:01]} 7. O-O {[%emt 0:00:02]} e5 {[%emt 0:00:01]} 8. d3 {[%emt 0:00:06]} Be7 {[%emt 0:00:02]} 9. Be3 {[%emt 0:00:08]} Bd7 {[%emt 0:00:18]} 10. Rc1 {[%emt 0:00:03]} Rc8 {[%emt 0:00:01]} 11. a3 {[%emt 0:00:19]} O-O {[%emt 0:00:05]} 12. Nd2 {[%emt 0:00:46]} b6 {[%emt 0:00:05]} 13. Nc4 {[%emt 0:00:11]} f6 {[%emt 0:00:35]} 14. f4 {[%emt 0:00:06]} b5 {[%emt 0:00:08]} 15. Nd2 {[%emt 0:00:11]} Nd4 {[%emt 0:00:07]} 16. Nf3 {[%emt 0:00:24]} Nxf3+ {[%emt 0:00:27]} 17. Bxf3 {[%emt 0:00:05]} Ne6 {[%emt 0:00:09]} 18. Bd5 {[%emt 0:00:17]} Kh8 {[%emt 0:00:03]} 19. Qb3 {[%emt 0:00:11]} Nd4 {[%emt 0:00:03]} 20. Bxd4 {[%emt 0:00:05]} cxd4 {[%emt 0:00:07]} 21. Ne4 {[%emt 0:00:07]} Bg4 {[%emt 0:00:13]} 22. Kf2 {[%emt 0:00:06]} a6 {[%emt 0:00:02]} 23. Be6 {[%emt 0:00:04]} Bxe6 {[%emt 0:00:13]} 24. Qxe6 {[%emt 0:00:01]} Rxc1 {[%emt 0:00:08]} 25. Rxc1 {[%emt 0:00:01]} f5 {[%emt 0:00:08]} 26. Nd2 {[%emt 0:00:05]} exf4 {[%emt 0:00:06]} 27. gxf4 {[%emt 0:00:01]} Bh4+ {[%emt 0:00:00]} 28. Kg2 {[%emt 0:00:02]} Re8 {[%emt 0:00:03]} 29. Qxf5 {[%emt 0:00:05]} Rxe2+ {[%emt 0:00:02]} 30. Kh3 {[%emt 0:00:02]} Re3+ {[%emt 0:00:06]} 31. Kg2 {[%emt 0:00:02]} Re2+ {[%emt 0:00:02]} 32. Kf1 {[%emt 0:00:03]} Rf2+ {[%emt 0:00:46]} 33. Kg1 Rxd2 {[%emt 0:00:00]} 34. Rc8 {[%emt 0:00:01]} Rd1+ {[%emt 0:00:00]} 35. Kg2 {[%emt 0:00:01]} Rd2+ {[%emt 0:00:00]} 36. Kf1 {[%emt 0:00:02]} Rd1+ {[%emt 0:00:00]} 37. Ke2 {[%emt 0:00:00]} Re1+ {[%emt 0:00:00]} 38. Kf3 {[%emt 0:00:01]} Re3+ {[%emt 0:00:00]} 39. Kg4 {[%emt 0:00:01]} Re8 {[%emt 0:00:00]} 40. Rxd8 {[%emt 0:00:02]} Bxd8 {[%emt 0:00:00]} 41. Qd7 {[%emt 0:00:01]} Rf8 {[%emt 0:00:00]} 42. Qxd4 {[%emt 0:00:01]} h6 {[%emt 0:00:00]} 43. f5 {[%emt 0:00:01]} Bf6 {[%emt 0:00:00]} 44. Qd6 {[%emt 0:00:01]} Rd8 {[%emt 0:00:02]} 45. Qxa6 {[%emt 0:00:01]} Rd4+ {[%emt 0:00:01]} 46. Kf3 {[%emt 0:00:02]} Rxd3+ {[%emt 0:00:01]} 47. Ke4 {[%emt 0:00:01]} Rb3 {[%emt 0:00:04]} 48. Qc8+ {[%emt 0:00:03]} Kh7 {[%emt 0:00:01]} 49. Qc2 {[%emt 0:00:02]} Rxb2 {[%emt 0:00:02]} 50. Qc6 {[%emt 0:00:02]} Rb3 {[%emt 0:00:05]} 51. Kd5 {[%emt 0:00:07]} Rxa3 {[%emt 0:00:06]} 52. Qxb5 {[%emt 0:00:02]} Rf3 {[%emt 0:00:02]} 53. Ke6 {[%emt 0:00:01]} Re3+ {[%emt 0:00:03]} 54. Kf7 {[%emt 0:00:01]} Re7+ {[%emt 0:00:02]} 55. Kf8 {[%emt 0:00:00]} Re5 {[%emt 0:00:02]} 56. Qc4 {[%emt 0:00:03]} Re1 {[%emt 0:00:07]} 57. Qg8# {[%emt 0:00:03]} 1-0

[Event "Austria Championship Blitz 2024"]
[Site "Innsbruck"]
[Date "2024.06.01"]
[Round "2.16"]
[White "Walder, Elias"]
[Black "Hengl, Philip"]
[Result "1/2-1/2"]
[ECO "E17"]
[WhiteElo "2035"]
[BlackElo "2173"]
[Annotator "RC"]
[PlyCount "81"]
[EventDate "2024.06.01"]
[EventType "swiss"]
[EventCountry "AUT"]
[SourceTitle "playchess.com"]
[Source "ChessBase"]
[SourceQuality "1"]
[TimeControl "180+2"]

1. c4 {[%emt 0:00:01]} Nf6 {[%emt 0:00:02]} 2. g3 {[%emt 0:00:00]} e6 {[%emt 0:00:01]} 3. Bg2 {[%emt 0:00:01]} d5 {[%emt 0:00:01]} 4. Nf3 {[%emt 0:00:01]} Be7 {[%emt 0:00:00]} 5. b3 {[%emt 0:00:01]} O-O {[%emt 0:00:03]} 6. Bb2 {[%emt 0:00:01]} b6 {[%emt 0:00:06]} 7. O-O {[%emt 0:00:02]} Bb7 {[%emt 0:00:00]} 8. cxd5 {[%emt 0:00:01]} exd5 {[%emt 0:00:16]} 9. d4 {[%emt 0:00:01]} Nbd7 {[%emt 0:00:03]} 10. Nc3 {[%emt 0:00:02]} a6 {[%emt 0:00:02]} 11. Rc1 {[%emt 0:00:02]} Bd6 {[%emt 0:00:01]} 12. e3 {[%emt 0:00:02]} Qe7 {[%emt 0:00:02]} 13. Qd3 {[%emt 0:00:05]} Rac8 {[%emt 0:00:08]} 14. Rfd1 {[%emt 0:00:02]} Ne4 {[%emt 0:00:09]} 15. Rc2 {[%emt 0:00:08]} Ndf6 {[%emt 0:00:11]} 16. h3 {[%emt 0:00:06]} Nh5 {[%emt 0:00:12]} 17. Qe2 {[%emt 0:00:21]} Nhf6 {[%emt 0:00:15]} 18. Rdc1 {[%emt 0:00:04]} Rfe8 {[%emt 0:00:03]} 19. Nd2 {[%emt 0:00:09]} Qe6 {[%emt 0:00:29]} 20. Ncxe4 {[%emt 0:00:07]} Nxe4 {[%emt 0:00:05]} 21. Nxe4 {[%emt 0:00:04]} dxe4 {[%emt 0:00:01]} 22. Qc4 {[%emt 0:00:11]} a5 {[%emt 0:00:12]} 23. Qxe6 {[%emt 0:00:03]} Rxe6 {[%emt 0:00:01]} 24. h4 {[%emt 0:00:07]} Ree8 {[%emt 0:00:04]} 25. Bh3 {[%emt 0:00:05]} Rb8 {[%emt 0:00:07]} 26. Rd1 {[%emt 0:00:01]} Bd5 {[%emt 0:00:09]} 27. Bf1 {[%emt 0:00:05]} b5 {[%emt 0:00:09]} 28. Bc3 {[%emt 0:00:07]} Ra8 {[%emt 0:00:03]} 29. Bxb5 {[%emt 0:00:04]} Reb8 {[%emt 0:00:03]} 30. Bc4 {[%emt 0:00:03]} Bc6 {[%emt 0:00:22]} 31. Bb2 {[%emt 0:00:06]} Rb6 {[%emt 0:00:14]} 32. Bf1 {[%emt 0:00:06]} a4 {[%emt 0:00:04]} 33. Bc4 {[%emt 0:00:02]} axb3 {[%emt 0:00:30]} 34. Bxb3 {[%emt 0:00:02]} Bb5 {[%emt 0:00:00]} 35. Bc3 {[%emt 0:00:20]} Bd3 {[%emt 0:00:00]} 36. Rcc1 {[%emt 0:00:01]} Ba3 {[%emt 0:00:00]} 37. Ra1 {[%emt 0:00:01]} Bd6 {[%emt 0:00:00]} 38. Rac1 {[%emt 0:00:01]} Ba3 {[%emt 0:00:00]} 39. Ra1 {[%emt 0:00:03]} Bd6 {[%emt 0:00:00]} 40. Rac1 {[%emt 0:00:01]} Ba3 {[%emt 0:00:00]} 41. Ra1 {[%emt 0:01:34]} 1/2-1/2

[Event "Austria Championship Blitz 2024"]
[Site "Innsbruck"]
[Date "2024.06.01"]
[Round "2.17"]
[White "Neuschmied, Siegfried"]
[Black "Kimpel, Janine"]
[Result "1-0"]
[ECO "B05"]
[WhiteElo "2234"]
[BlackElo "1875"]
[Annotator "RC"]
[PlyCount "83"]
[EventDate "2024.06.01"]
[EventType "swiss"]
[EventCountry "AUT"]
[SourceTitle "playchess.com"]
[Source "ChessBase"]
[SourceQuality "1"]
[TimeControl "180+2"]

1. e4 {[%emt 0:00:01]} Nf6 {[%emt 0:00:01]} 2. e5 {[%emt 0:00:02]} Nd5 {[%emt 0:00:00]} 3. d4 {[%emt 0:00:01]} d6 {[%emt 0:00:01]} 4. Nf3 {[%emt 0:00:01]} Bg4 {[%emt 0:00:01]} 5. Be2 {[%emt 0:00:01]} Nc6 {[%emt 0:00:03]} 6. O-O {[%emt 0:00:07]} e6 {[%emt 0:00:01]} 7. c4 {[%emt 0:00:12]} Nb6 {[%emt 0:00:02]} 8. exd6 {[%emt 0:00:02]} cxd6 {[%emt 0:00:04]} 9. Nbd2 {[%emt 0:00:17]} Be7 {[%emt 0:00:04]} 10. b3 {[%emt 0:00:01]} O-O {[%emt 0:00:03]} 11. Bb2 {[%emt 0:00:01]} Bf6 {[%emt 0:00:13]} 12. h3 {[%emt 0:00:02]} Bh5 {[%emt 0:00:08]} 13. Ne4 {[%emt 0:00:02]} Be7 {[%emt 0:00:17]} 14. Ng3 {[%emt 0:00:01]} Bg6 {[%emt 0:00:03]} 15. Qd2 {[%emt 0:00:03]} d5 {[%emt 0:00:09]} 16. c5 {[%emt 0:00:03]} Nd7 {[%emt 0:00:02]} 17. b4 {[%emt 0:00:04]} a6 {[%emt 0:00:03]} 18. a4 {[%emt 0:00:03]} Nf6 {[%emt 0:00:08]} 19. Bc3 {[%emt 0:00:29]} Ne4 {[%emt 0:00:26]} 20. Nxe4 {[%emt 0:00:02]} Bxe4 {[%emt 0:00:01]} 21. b5 {[%emt 0:00:09]} axb5 {[%emt 0:00:09]} 22. axb5 {[%emt 0:00:02]} Rxa1 {[%emt 0:00:17]} 23. Rxa1 {[%emt 0:00:01]} Nb8 {[%emt 0:00:02]} 24. Ra8 {[%emt 0:00:23]} Qc7 {[%emt 0:00:01]} 25. Ba5 {[%emt 0:00:05]} Qd7 {[%emt 0:00:06]} 26. Ne5 {[%emt 0:00:02]} Qc8 {[%emt 0:00:09]} 27. f3 {[%emt 0:00:22]} Bf5 {[%emt 0:00:02]} 28. Bb6 {[%emt 0:00:05]} Bd8 {[%emt 0:00:09]} 29. Ba7 {[%emt 0:00:11]} Bc7 {[%emt 0:00:02]} 30. Nd3 {[%emt 0:00:20]} Bxd3 {[%emt 0:00:13]} 31. Bxd3 {[%emt 0:00:01]} Qd7 {[%emt 0:00:04]} 32. b6 {[%emt 0:00:17]} Bg3 {[%emt 0:00:01]} 33. Qg5 {[%emt 0:00:01]} Qa4 {[%emt 0:00:26]} 34. Qxg3 {[%emt 0:00:04]} Qxd4+ {[%emt 0:00:01]} 35. Kh2 {[%emt 0:00:06]} Qxd3 {[%emt 0:00:01]} 36. Rxb8 {[%emt 0:00:02]} h6 {[%emt 0:00:08]} 37. Rxf8+ {[%emt 0:00:04]} Kxf8 38. Bb8 Qc4 {[%emt 0:00:08]} 39. Qf4 {[%emt 0:00:04]} Kg8 {[%emt 0:00:02]} 40. Qxc4 {[%emt 0:00:02]} dxc4 {[%emt 0:00:02]} 41. Be5 {[%emt 0:00:01]} Kf8 {[%emt 0:00:02]} 42. c6 {[%emt 0:00:00]} 1-0

[Event "Austria Championship Blitz 2024"]
[Site "Innsbruck"]
[Date "2024.06.01"]
[Round "2.19"]
[White "Kondrak, Christoph"]
[Black "Haralcic, Edin"]
[Result "0-1"]
[ECO "A46"]
[WhiteElo "1972"]
[BlackElo "1936"]
[Annotator "RC"]
[PlyCount "76"]
[EventDate "2024.06.01"]
[EventType "swiss"]
[EventCountry "AUT"]
[SourceTitle "playchess.com"]
[Source "ChessBase"]
[SourceQuality "1"]
[TimeControl "180+2"]

1. d4 {[%emt 0:00:02]} Nf6 {[%emt 0:00:01]} 2. Nf3 {[%emt 0:00:00]} e6 {[%emt 0:00:01]} 3. Bf4 {[%emt 0:00:01]} c5 {[%emt 0:00:05]} 4. dxc5 {[%emt 0:00:01]} Bxc5 {[%emt 0:00:01]} 5. e3 {[%emt 0:00:01]} O-O {[%emt 0:00:06]} 6. a3 {[%emt 0:00:01]} d5 {[%emt 0:00:06]} 7. Nbd2 {[%emt 0:00:02]} Nc6 {[%emt 0:00:02]} 8. Be2 {[%emt 0:00:02]} Bd6 {[%emt 0:00:03]} 9. Bg5 {[%emt 0:00:01]} h6 {[%emt 0:00:02]} 10. Bh4 {[%emt 0:00:00]} Be7 {[%emt 0:00:08]} 11. Bg3 {[%emt 0:00:02]} Bd6 {[%emt 0:00:01]} 12. Rc1 {[%emt 0:00:01]} Bxg3 {[%emt 0:00:10]} 13. hxg3 {[%emt 0:00:02]} e5 {[%emt 0:00:02]} 14. O-O {[%emt 0:00:19]} e4 {[%emt 0:00:16]} 15. Nd4 {[%emt 0:00:01]} Nxd4 {[%emt 0:00:04]} 16. exd4 {[%emt 0:00:01]} e3 {[%emt 0:00:17]} 17. fxe3 {[%emt 0:02:59]} Re8 18. c4 {[%emt 0:00:00]} Rxe3 {[%emt 0:00:07]} 19. Bf3 {[%emt 0:00:00]} Qb6 {[%emt 0:00:11]} 20. cxd5 {[%emt 0:00:06]} Qxd4 {[%emt 0:00:10]} 21. Kh2 {[%emt 0:00:00]} Nxd5 {[%emt 0:00:34]} 22. Nc4 {[%emt 0:00:00]} Rd3 {[%emt 0:00:16]} 23. Qe1 {[%emt 0:00:00]} Be6 {[%emt 0:00:04]} 24. Be4 {[%emt 0:00:00]} Rb3 {[%emt 0:00:08]} 25. Qa5 {[%emt 0:00:00]} Nf6 {[%emt 0:00:05]} 26. Qa4 {[%emt 0:00:00]} Ng4+ {[%emt 0:00:29]} 27. Kh1 {[%emt 0:00:00]} Rxg3 {[%emt 0:00:02]} 28. Nb6 {[%emt 0:00:00]} Qxb6 {[%emt 0:00:11]} 29. Bf3 {[%emt 0:00:00]} Ne5 {[%emt 0:00:08]} 30. Qc2 {[%emt 0:00:02]} Nxf3 {[%emt 0:00:04]} 31. Rxf3 {[%emt 0:00:01]} Rxf3 32. gxf3 {[%emt 0:00:01]} Rc8 {[%emt 0:00:01]} 33. Qd2 {[%emt 0:00:02]} Rxc1+ {[%emt 0:00:03]} 34. Qxc1 {[%emt 0:00:00]} Qc6 {[%emt 0:00:01]} 35. Qe3 {[%emt 0:00:05]} Bd5 {[%emt 0:00:02]} 36. Kg2 {[%emt 0:00:01]} Bxf3+ {[%emt 0:00:02]} 37. Qxf3 {[%emt 0:00:01]} Qxf3+ {[%emt 0:00:01]} 38. Kxf3 {[%emt 0:00:01]} Kf8 {[%emt 0:00:01]} 0-1

[Event "Austria Championship Blitz 2024"]
[Site "Innsbruck"]
[Date "2024.06.01"]
[Round "2.20"]
[White "Karall, Lorenz"]
[Black "Horvath, Dominik"]
[Result "0-1"]
[ECO "D43"]
[WhiteElo "1869"]
[BlackElo "2554"]
[Annotator "TA"]
[PlyCount "59"]
[EventDate "2024.06.01"]
[EventType "swiss"]
[EventCountry "AUT"]
[SourceTitle "playchess.com"]
[Source "ChessBase"]
[SourceQuality "1"]
[TimeControl "180+2"]

{[%evp 18,59,25,25,25,23,10,-19,10,10,11,-31,-27,-39,-8,-68,-65,-64,-64,-61,-46,-36,-20,-101,-98,-90,-109,-289,-276,-282,-299,-284,-271,-292,-278,-287,-269,-286,-271,-289,-277,-293,-266,-312]} 1. d4 {[%emt 0:00:02]} Nf6 {[%emt 0:00:00]} 2. Nf3 {[%emt 0:00:01]} d5 {[%emt 0:00:01]} 3. c4 {[%emt 0:00:02]} e6 {[%emt 0:00:01]} 4. Nc3 {[%emt 0:00:02]} Bb4 {[%emt 0:00:02]} 5. Qc2 {[%emt 0:00:03]} O-O {[%emt 0:00:02]} 6. Bg5 {[%emt 0:00:03]} h6 {[%emt 0:00:12]} 7. Bxf6 {[%emt 0:00:02]} Qxf6 {[%emt 0:00:02]} 8. e3 {[%emt 0:00:03]} c6 {[%emt 0:00:02]} 9. Bd3 {[%emt 0:00:06]} Nd7 {[%emt 0:00:02]} 10. O-O {[%emt 0:00:06]} Re8 {[%emt 0:00:06]} 11. cxd5 {[%emt 0:00:12]} exd5 {[%emt 0:00:02]} 12. Bf5 {[%emt 0:00:21]} g6 {[%emt 0:00:06] The position is equal.} 13. Bd3 {[%emt 0:00:15]} Kg7 {[%emt 0:00:31]} 14. Ne2 {[%emt 0:00:06]} Bd6 {[%emt 0:00:02]} 15. Rae1 {[%emt 0:00:19]} Nf8 {[%emt 0:00:05]} 16. e4 {[%emt 0:00:15]} (16. Ng3 $11) 16... dxe4 $15 {[%emt 0:00:04]} 17. Bxe4 {[%emt 0:00:01]} Ne6 {[%emt 0:00:11]} 18. Bd3 {[%emt 0:00:20]} Bd7 {[%emt 0:00:05]} 19. Qc3 {[%emt 0:00:05]} Nc7 {[%emt 0:00:10]} 20. Bc4 {[%emt 0:00:17]} (20. Ng3 $11) 20... b5 $17 {[%emt 0:00:19] Black is much more active.} 21. Bb3 {[%emt 0:00:09]} a5 $36 {[%emt 0:00:02][%mdl 2048] White is under strong pressure.} 22. a4 $2 {[%emt 0:00:03] [#]} (22. a3 $17 {was necessary.}) 22... Bb4 $19 {[%emt 0:00:02] Black has a decisive advantage.} 23. Qc1 {[%emt 0:00:18]} Bxe1 {[%emt 0:00:02]} 24. Rxe1 {[%emt 0:00:04]} Be6 {[%emt 0:00:05]} 25. Bxe6 {[%emt 0:00:19]} Rxe6 {[%emt 0:00:08]} ({But not} 25... Qxe6 26. Ne5 $19) 26. Ne5 {[%emt 0:00:03]} Nd5 {[%emt 0:00:09]} 27. axb5 {[%emt 0:00:11]} cxb5 {[%emt 0:00:04]} 28. Ng3 {[%emt 0:00:04]} Qf4 {[%emt 0:00:14]} 29. Qc5 {[%emt 0:00:04]} Rd8 {[%emt 0:00:03] White must now prevent ...Qd2.} 30. h3 {[%emt 0:00:06] Black took control after the opening.   Weighted Error Value: White=0.27 (precise) /Black=0.10 (very precise) .  Loses game:     	White=1     	---        Mistake:       	White=2     	---        Inaccurate:     	White=2     	Black=2      OK:         	White=4     	Black=5      Best:        	---       	Black=2} 0-1

[Event "Austria Championship Blitz 2024"]
[Site "Innsbruck"]
[Date "2024.06.01"]
[Round "2.21"]
[White "Hatzl, Johannes"]
[Black "Wolfgang, Valentin"]
[Result "1/2-1/2"]
[ECO "B13"]
[WhiteElo "2074"]
[BlackElo "1866"]
[Annotator "RC"]
[PlyCount "120"]
[EventDate "2024.06.01"]
[EventType "swiss"]
[EventCountry "AUT"]
[SourceTitle "playchess.com"]
[Source "ChessBase"]
[SourceQuality "1"]
[TimeControl "180+2"]

1. d4 {[%emt 0:00:01]} d5 {[%emt 0:00:02]} 2. Bf4 {[%emt 0:00:01]} c5 {[%emt 0:00:01]} 3. e3 {[%emt 0:00:01]} cxd4 {[%emt 0:00:02]} 4. exd4 {[%emt 0:00:01]} Nc6 {[%emt 0:00:02]} 5. c3 {[%emt 0:00:01]} f6 {[%emt 0:00:02]} 6. Bb5 {[%emt 0:00:10]} g5 {[%emt 0:00:16]} 7. Qh5+ {[%emt 0:00:09]} Kd7 {[%emt 0:00:01]} 8. Be3 {[%emt 0:00:18]} a6 {[%emt 0:00:04]} 9. Ba4 {[%emt 0:00:02]} b5 {[%emt 0:00:04]} 10. Bc2 {[%emt 0:00:01]} e6 {[%emt 0:00:04]} 11. Nd2 {[%emt 0:00:06]} Nge7 {[%emt 0:00:09]} 12. Qe2 {[%emt 0:00:10]} Kc7 {[%emt 0:00:15]} 13. a4 {[%emt 0:00:04]} Bd7 {[%emt 0:00:38]} 14. Qd3 {[%emt 0:00:24]} e5 {[%emt 0:00:09]} 15. dxe5 {[%emt 0:00:05]} Bf5 {[%emt 0:00:03]} 16. Qe2 {[%emt 0:00:14]} Bxc2 {[%emt 0:00:05]} 17. a5 {[%emt 0:00:13]} Kb7 {[%emt 0:00:23]} 18. exf6 {[%emt 0:00:01]} Nf5 {[%emt 0:00:04]} 19. Bxg5 {[%emt 0:00:09]} h6 {[%emt 0:00:11]} 20. Be3 {[%emt 0:00:17]} Nxe3 {[%emt 0:00:02]} 21. Qxe3 {[%emt 0:00:03]} Qe8 {[%emt 0:00:04]} 22. Ngf3 {[%emt 0:00:02]} Qxe3+ {[%emt 0:00:02]} 23. fxe3 {[%emt 0:00:01]} Bc5 {[%emt 0:00:12]} 24. Nd4 {[%emt 0:00:03]} Bxd4 {[%emt 0:00:04]} 25. cxd4 {[%emt 0:00:06]} Rae8 {[%emt 0:00:02]} 26. Kf2 {[%emt 0:00:07]} Rhf8 {[%emt 0:00:01]} 27. Rac1 {[%emt 0:00:03]} Rxf6+ {[%emt 0:00:07]} 28. Nf3 {[%emt 0:00:01]} Be4 {[%emt 0:00:02]} 29. Ke2 {[%emt 0:00:10]} Bxf3+ {[%emt 0:00:01]} 30. gxf3 {[%emt 0:00:01]} Rfe6 {[%emt 0:00:01]} 31. Kf2 {[%emt 0:00:04]} Rxe3 {[%emt 0:00:02]} 32. Rhg1 {[%emt 0:00:03]} Re2+ {[%emt 0:00:02]} 33. Kg3 {[%emt 0:00:01]} Rg8+ {[%emt 0:00:01]} 34. Kf4 {[%emt 0:00:01]} Rxg1 35. Rxg1 {[%emt 0:00:01]} Re7 {[%emt 0:00:07]} 36. Rg6 {[%emt 0:00:03]} h5 {[%emt 0:00:03]} 37. Rd6 {[%emt 0:00:04]} Nxd4 {[%emt 0:00:03]} 38. Rxd5 {[%emt 0:00:05]} Nc6 {[%emt 0:00:01]} 39. Rxh5 {[%emt 0:00:03]} Nxa5 {[%emt 0:00:02]} 40. Rf5 {[%emt 0:00:06]} Rh7 {[%emt 0:00:02]} 41. Kg3 {[%emt 0:00:01]} Nc4 {[%emt 0:00:02]} 42. b3 {[%emt 0:00:01]} Nd6 {[%emt 0:00:07]} 43. Rf6 {[%emt 0:00:03]} Kc6 {[%emt 0:00:02]} 44. h4 {[%emt 0:00:01]} Kd5 {[%emt 0:00:01]} 45. Kg4 {[%emt 0:00:05]} a5 {[%emt 0:00:06]} 46. h5 {[%emt 0:00:02]} a4 {[%emt 0:00:00]} 47. bxa4 {[%emt 0:00:01]} bxa4 {[%emt 0:00:02]} 48. Rf4 {[%emt 0:00:00]} Nc4 {[%emt 0:00:03]} 49. Rf5+ {[%emt 0:00:01]} Kd4 {[%emt 0:00:01]} 50. Rf8 {[%emt 0:00:05]} Kc3 {[%emt 0:00:02]} 51. Kg5 {[%emt 0:00:01]} a3 {[%emt 0:00:02]} 52. Ra8 {[%emt 0:00:01]} Kb2 {[%emt 0:00:04]} 53. Kg6 {[%emt 0:00:01]} Rb7 {[%emt 0:00:04]} 54. h6 {[%emt 0:00:02]} Ne5+ {[%emt 0:00:02]} 55. Kf6 {[%emt 0:00:06]} Nxf3 {[%emt 0:00:01]} 56. Kg6 {[%emt 0:00:01]} Ne5+ {[%emt 0:00:02]} 57. Kf6 {[%emt 0:00:00]} a2 {[%emt 0:00:05]} 58. Kxe5 {[%emt 0:00:13]} a1=Q {[%emt 0:00:01]} 59. Rxa1 {[%emt 0:00:01]} Kxa1 {[%emt 0:00:02]} 60. Kf6 {[%emt 0:00:01]} Rb2 {[%emt 0:00:17]} 1/2-1/2